bitfinex/quotes_SOLUSD_20241028
["timestamp","ask_amount","ask_price","bid_price","bid_amount"]
[1730111099065,5.86258,178.2,178.18,10.90277788]
[1730111099361,5.86258,178.2,178.12,23.776884]
[1730111099540,5.86258,178.2,178.18,10.90277788]
[1730111100756,20.0,178.25,178.19,10.90277788]
[1730111100939,5.61,178.25,178.15,15.7286]
[1730111101138,0.12549,178.24,178.2,10.90277788]
[1730111102041,5.6107,178.23,178.2,10.90277788]
[1730111103371,5.6107,178.23,178.21,10.90277788]
[1730111107972,5.6107,178.23,178.2,10.90277788]
[1730111110467,5.86168,178.23,178.22,10.90277788]
[1730111110670,16.6646,178.3,178.22,10.90277788]
[1730111110846,16.6646,178.3,178.26,10.90277788]
[1730111111047,0.12549,178.27,178.23,10.90277788]
[1730111111658,0.12549,178.27,178.24,10.90277788]
[1730111111659,5.6094,178.27,178.24,10.90277788]
[1730111112158,5.6094,178.27,178.2,43.61111152]
[1730111112159,5.73469,178.28,178.26,10.90277788]
[1730111112583,5.6092,178.28,178.26,10.90277788]
[1730111112954,5.609,178.29,178.26,10.90277788]
[1730111115069,5.609,178.29,178.25,10.90277788]
[1730111115673,0.25098,178.3,178.26,10.90277788]
[1730111115978,0.25098,178.3,178.27,10.90277788]
[1730111115979,0.12549,178.3,178.27,10.90277788]
[1730111116177,0.25098,178.3,178.26,10.90277788]
[1730111116356,11.15375788,178.3,178.25,10.90277788]
[1730111116992,16.76235788,178.3,178.25,10.90277788]
[1730111117977,10.90277788,178.31,178.26,10.90277788]
[1730111118287,5.6082,178.31,178.27,10.90277788]
[1730111119785,10.90277788,178.28,178.18,16.1175]
[1730111119958,10.90277788,178.28,178.23,10.90277788]
[1730111120387,10.90277788,178.29,178.24,10.90277788]
[1730111120984,5.6088,178.29,178.24,10.90277788]
[1730111121292,16.51157788,178.29,178.24,10.90277788]
[1730111122179,20.0,178.31,178.26,10.90277788]
[1730111122382,10.90277788,178.31,178.26,10.90277788]
[1730111122682,5.6078,178.32,178.26,10.90277788]
[1730111122986,10.90277788,178.31,178.26,10.90277788]
[1730111123369,16.51107788,178.31,178.26,10.90277788]
[1730111124384,11.02826788,178.32,178.27,10.90277788]
[1730111124963,31.15375788,178.32,178.27,10.90277788]
[1730111125154,20.25098,178.32,178.27,10.90277788]
[1730111125385,36.76165788,178.32,178.27,10.90277788]
[1730111126439,25.85888,178.32,178.27,10.90277788]
[1730111126698,36.76165788,178.32,178.27,10.90277788]
[1730111127190,36.51067788,178.32,178.27,10.90277788]
[1730111127387,11.567742,178.35,178.21,0.2]
[1730111127388,5.141642,178.35,178.3,10.90277788]
[1730111127578,5.141642,178.35,178.29,10.90277788]
[1730111127579,10.90277788,178.34,178.29,10.90277788]
[1730111127779,10.90277788,178.32,178.26,15.8909]
[1730111128090,10.90277788,178.31,178.26,10.90277788]
[1730111128285,10.748542,178.35,178.27,10.90277788]
[1730111128499,10.748542,178.35,178.28,10.90277788]
[1730111128800,10.90277788,178.33,178.28,10.90277788]
[1730111128987,10.748542,178.35,178.28,10.90277788]
[1730111129304,10.90277788,178.33,178.28,10.90277788]
[1730111131995,5.141642,178.35,178.26,10.90277788]
[1730111131996,10.90277788,178.31,178.26,10.90277788]
[1730111132222,10.90277788,178.29,178.22,15.8909]
[1730111132377,10.90277788,178.27,178.22,15.8909]
[1730111132884,10.90277788,178.27,178.22,10.90277788]
[1730111133697,10.90277788,178.28,178.23,10.90277788]
[1730111134804,10.90277788,178.28,178.2,0.1]
[1730111134980,5.6089,178.29,178.2,0.1]
[1730111134981,5.6089,178.29,178.23,23.776884]
[1730111135187,10.90277788,178.28,178.23,34.67966188]
[1730111135705,10.90277788,178.28,178.23,23.776884]
[1730111136492,16.51197788,178.28,178.23,23.776884]
[1730111136681,10.90277788,178.26,178.22,23.776884]
[1730111137020,10.90277788,178.23,178.18,26.12207788]
[1730111137183,5.6092,178.28,178.2,10.90277788]
[1730111137184,10.90277788,178.25,178.2,10.90277788]
[1730111137502,10.90277788,178.28,178.23,10.90277788]
[1730111137678,10.90277788,178.28,178.19,0.1]
[1730111137881,10.90277788,178.26,178.21,10.90277788]
[1730111138303,10.90277788,178.26,178.22,23.776884]
[1730111138990,10.90277788,178.27,178.22,34.67966188]
[1730111139515,5.6091,178.28,178.23,10.90277788]
[1730111139800,16.51187788,178.28,178.23,10.90277788]
[1730111140003,10.90277788,178.27,178.22,34.67966188]
[1730111141704,10.90277788,178.26,178.21,10.90277788]
[1730111143523,20.0,178.29,178.18,15.3193]
[1730111143524,10.90277788,178.24,178.19,10.90277788]
[1730111144499,20.0,178.29,178.2,10.90277788]
[1730111144703,14.14739,178.3,178.19,23.776884]
[1730111144704,20.0,178.27,178.21,10.90277788]
[1730111144915,10.90277788,178.26,178.21,10.90277788]
[1730111145408,30.90277788,178.27,178.22,10.90277788]
[1730111145618,10.90277788,178.27,178.22,10.90277788]
[1730111145911,16.51187788,178.28,178.22,10.90277788]
[1730111146509,16.51187788,178.28,178.23,10.90277788]
[1730111146911,16.51187788,178.28,178.19,23.776884]
[1730111147086,16.51187788,178.28,178.22,10.90277788]
[1730111148398,10.90277788,178.27,178.22,10.90277788]
[1730111149202,25.98507,178.3,178.22,10.90277788]
[1730111149416,10.90277788,178.27,178.22,10.90277788]
[1730111152628,10.90277788,178.28,178.22,10.90277788]
[1730111152812,5.6094,178.27,178.22,10.90277788]
[1730111153516,10.90277788,178.28,178.19,23.776884]
[1730111153517,5.6088,178.29,178.24,10.90277788]
[1730111153820,5.6088,178.29,178.25,10.90277788]
[1730111155791,5.6088,178.29,178.26,10.90277788]
[1730111156914,5.6088,178.29,178.26,3.72427788]
[1730111157696,10.90277788,178.28,178.23,10.90277788]
[1730111158023,16.51157788,178.29,178.24,10.90277788]
[1730111159103,5.6088,178.29,178.25,10.90277788]
[1730111161494,16.51157788,178.29,178.24,10.90277788]
[1730111161717,16.51157788,178.29,178.23,10.90277788]
[1730111162922,5.6088,178.29,178.23,10.90277788]
[1730111163118,5.6088,178.29,178.19,23.876884]
[1730111163119,16.51157788,178.29,178.24,10.90277788]
[1730111165224,16.51157788,178.29,178.23,10.90277788]
[1730111166824,5.6088,178.29,178.24,10.90277788]
[1730111167008,16.51157788,178.29,178.19,23.876884]
[1730111167206,16.51157788,178.29,178.24,10.90277788]
[1730111167528,10.90277788,178.28,178.19,23.776884]
[1730111167826,10.90277788,178.28,178.22,10.90277788]
[1730111168213,5.6088,178.29,178.23,10.90277788]
[1730111168412,16.51157788,178.29,178.24,10.90277788]
[1730111169108,5.6072,178.34,178.25,23.776884]
[1730111169310,16.50997788,178.34,178.28,10.90277788]
[1730111170002,10.90277788,178.33,178.28,10.90277788]
[1730111170333,20.0,178.34,178.29,10.90277788]
[1730111170633,30.90277788,178.34,178.29,10.90277788]
[1730111171428,36.51007788,178.34,178.29,10.90277788]
[1730111171729,10.90277788,178.32,178.25,23.776884]
[1730111171930,10.90277788,178.32,178.27,10.90277788]
[1730111172225,10.90277788,178.31,178.26,10.90277788]
[1730111172412,10.90277788,178.32,178.26,10.90277788]
[1730111172807,10.90277788,178.3,178.25,34.67966188]
[1730111173218,10.90277788,178.3,178.21,0.1]
[1730111173421,10.90277788,178.32,178.27,10.90277788]
[1730111174534,5.608,178.32,178.26,10.90277788]
[1730111174714,10.90277788,178.31,178.26,10.90277788]
[1730111175527,10.90277788,178.28,178.2,15.9175]
[1730111175740,10.90277788,178.27,178.22,10.90277788]
[1730111176732,10.90277788,178.27,178.2,10.90277788]
[1730111176733,10.90277788,178.25,178.2,10.90277788]
[1730111178542,10.90277788,178.26,178.21,10.90277788]
[1730111178845,25.73429,178.29,178.25,10.90277788]
[1730111179336,5.6086,178.3,178.26,10.90277788]
[1730111179915,5.6086,178.3,178.26,10.87831788]
[1730111180623,22.95497788,178.31,178.26,10.87831788]
[1730111181034,6.444,178.31,178.28,10.90277788]
[1730111181238,12.0523,178.31,178.27,10.90277788]
[1730111181941,5.6079,178.32,178.28,10.90277788]
[1730111182233,30.90277788,178.33,178.25,23.776884]
[1730111182439,10.90277788,178.32,178.25,23.776884]
[1730111182651,5.6082,178.31,178.26,10.90277788]
[1730111182938,16.51097788,178.31,178.26,10.90277788]
[1730111183140,10.90277788,178.28,178.23,10.90277788]
[1730111183324,10.90277788,178.29,178.24,10.90277788]
[1730111183730,11.02826788,178.3,178.24,10.90277788]
[1730111184340,5.6088,178.29,178.24,10.90277788]
[1730111184924,22.56077788,178.31,178.26,10.90277788]
[1730111186037,10.90277788,178.3,178.25,10.90277788]
[1730111186226,16.51127788,178.3,178.25,10.90277788]
[1730111187748,16.51127788,178.3,178.21,23.776884]
[1730111187914,16.51127788,178.3,178.25,10.90277788]
[1730111188119,10.90277788,178.29,178.24,10.90277788]
[1730111188334,5.6091,178.28,178.23,10.90277788]
[1730111189432,10.90277788,178.27,178.22,10.90277788]
[1730111189835,10.90277788,178.26,178.21,10.90277788]
[1730111190030,10.90277788,178.26,178.17,23.776884]
[1730111190340,10.90277788,178.25,178.2,10.90277788]
[1730111191222,16.51297788,178.25,178.2,10.90277788]
[1730111192154,5.6102,178.25,178.21,10.90277788]
[1730111192356,5.6098,178.26,178.22,10.90277788]
[1730111192539,5.86048,178.27,178.23,10.90277788]
[1730111192847,5.6095,178.27,178.24,10.90277788]
[1730111193452,36.76285788,178.28,178.23,10.90277788]
[1730111195748,36.51187788,178.28,178.23,10.90277788]
[1730111197250,10.90277788,178.26,178.21,10.90277788]
[1730111198158,10.90277788,178.22,178.13,0.1]
[1730111198343,10.90277788,178.21,178.16,10.90277788]
[1730111199049,5.6116,178.2,178.16,10.90277788]
[1730111199353,16.51407788,178.21,178.16,10.90277788]
[1730111199549,5.6113,178.21,178.16,10.90277788]
[1730111199745,16.51347788,178.23,178.18,10.90277788]
[1730111204743,12.01479,178.24,178.2,10.90277788]
[1730111205961,12.01479,178.24,178.13,23.976884]
[1730111205962,11.15375788,178.21,178.14,10.90277788]
[1730111206262,11.15375788,178.21,178.08,16.0175]
[1730111206263,10.90277788,178.19,178.08,16.0175]
[1730111206443,10.90277788,178.19,178.14,10.90277788]
[1730111206638,16.51487788,178.19,178.14,10.90277788]
[1730111206864,10.90277788,178.18,178.13,10.90277788]
[1730111207071,16.51487788,178.19,178.14,10.90277788]
[1730111207243,5.6121,178.19,178.14,10.90277788]
[1730111207442,70.0,178.2,178.15,10.90277788]
[1730111207647,70.0,178.2,178.16,10.90277788]
[1730111207850,20.0,178.21,178.11,43.71111152]
[1730111208160,0.12549,178.22,178.18,10.90277788]
[1730111208649,75.73669,178.22,178.18,10.90277788]
[1730111208854,86.63946788,178.22,178.17,10.90277788]
[1730111209667,81.02826788,178.22,178.17,10.90277788]
[1730111209867,86.63936788,178.22,178.17,10.90277788]
[1730111210578,25.73619,178.23,178.19,10.90277788]
[1730111211659,106.63896788,178.23,178.18,10.90277788]
[1730111212265,10.90277788,178.22,178.17,10.90277788]
[1730111213354,106.63896788,178.23,178.18,10.90277788]
[1730111213745,106.63896788,178.23,178.12,23.776884]
[1730111213950,16.51417788,178.21,178.16,10.90277788]
[1730111214151,81.02826788,178.19,178.14,10.90277788]
[1730111215243,81.02826788,178.19,178.08,16.0175]
[1730111215244,30.90277788,178.18,178.08,15.9175]
[1730111215444,16.98967788,178.17,178.12,10.90277788]
[1730111216046,5.6129,178.16,178.12,10.90277788]
[1730111216275,16.51567788,178.16,178.11,10.90277788]
[1730111216573,30.90277788,178.15,178.1,10.90277788]
[1730111216774,10.90277788,178.13,178.09,10.90277788]
[1730111216966,11.02826788,178.14,178.09,10.90277788]
[1730111217147,90.0,178.15,178.11,10.90277788]
[1730111217347,90.0,178.15,178.04,15.5195]
[1730111217348,20.0,178.15,178.12,10.90277788]
[1730111217648,5.6129,178.16,178.13,10.90277788]
[1730111218358,5.6129,178.16,178.13,10.40277788]
[1730111218952,5.6129,178.16,178.12,10.90277788]
[1730111219961,70.12549,178.15,178.11,10.90277788]
[1730111220194,5.6135,178.14,178.11,10.90277788]
[1730111220669,5.6135,178.14,178.1,10.90277788]
[1730111221372,16.51627788,178.14,178.09,10.90277788]
[1730111221569,100.90277788,178.13,178.08,10.90277788]
[1730111221868,0.25098,178.12,178.08,10.90277788]
[1730111222072,90.0,178.13,178.08,10.90277788]
[1730111222250,90.0,178.13,178.09,10.90277788]
[1730111222754,0.25098,178.12,178.08,10.90277788]
[1730111223256,5.86538,178.12,178.09,10.90277788]
[1730111225652,5.86538,178.12,178.09,10.40277788]
[1730111225859,10.90277788,178.11,178.06,10.90277788]
[1730111226266,33.30315788,178.12,178.07,10.90277788]
[1730111227656,10.90277788,178.1,178.05,10.90277788]
[1730111227861,10.90277788,178.11,178.06,10.90277788]
[1730111228054,70.0,178.09,178.0,15.9175]
[1730111228251,70.0,178.09,178.05,10.90277788]
[1730111229081,75.6152,178.09,178.04,10.90277788]
[1730111229375,20.0,178.08,178.04,10.40277788]
[1730111229572,20.0,178.08,177.97,0.1]
[1730111229573,80.90277788,178.07,177.97,0.1]
[1730111229774,80.90277788,178.07,178.02,10.90277788]
[1730111229953,70.0,178.07,178.03,10.90277788]
[1730111230878,75.6158,178.07,178.03,10.90277788]
[1730111231381,86.51857788,178.07,178.02,10.90277788]
[1730111232463,86.51857788,178.07,178.02,10.40277788]
[1730111232658,70.0,178.05,178.03,4.2348159]
[1730111232858,70.0,178.05,178.02,10.90277788]
[1730111233259,70.0,178.03,178.0,10.90277788]
[1730111233855,70.0,178.03,177.93,43.71111152]
[1730111234274,70.0,178.03,177.99,10.90277788]
[1730111234877,75.6171,178.03,178.0,10.90277788]
[1730111235972,75.6171,178.03,177.93,43.71111152]
[1730111235973,70.0,178.05,178.02,10.90277788]
[1730111236173,6.3102,178.08,178.04,10.90277788]
[1730111236366,70.0,178.07,177.99,23.776884]
[1730111236679,70.0,178.07,178.05,10.90277788]
[1730111236977,70.0,178.07,178.04,10.90277788]
[1730111237158,70.0,178.07,177.99,23.776884]
[1730111237159,70.0,178.07,178.05,10.90277788]
[1730111237886,70.0,178.07,178.04,10.90277788]
[1730111238055,75.6157,178.07,178.04,10.90277788]
[1730111238257,70.0,178.05,178.03,10.90277788]
[1730111238481,70.0,178.05,178.02,10.90277788]
[1730111238861,70.0,178.03,177.94,15.343]
[1730111239068,70.0,178.03,178.0,10.90277788]
[1730111239468,70.0,178.03,177.94,15.343]
[1730111239678,70.0,178.03,177.99,10.90277788]
[1730111239883,75.617,178.03,177.99,10.90277788]
[1730111240286,75.617,178.03,177.94,15.343]
[1730111240480,75.617,178.03,177.99,17.07177217]
[1730111240676,0.12549,178.02,177.99,17.07177217]
[1730111240995,0.12549,178.02,177.89,0.2]
[1730111240996,70.0,177.99,177.95,17.07177217]
[1730111241167,76.428,178.01,177.98,17.07177217]
[1730111241367,76.428,178.01,177.97,17.07177217]
[1730111241992,87.07177217,177.99,177.89,15.9175]
[1730111242185,87.07177217,177.99,177.94,17.07177217]
[1730111243276,70.0,177.96,177.94,17.07177217]
[1730111244081,70.0,177.98,177.94,22.69137217]
[1730111244279,70.0,177.98,177.94,5.6196]
[1730111244591,70.0,177.98,177.96,17.07177217]
[1730111245000,16.6614,177.99,177.96,17.07177217]
[1730111245993,16.6614,177.99,177.89,15.9175]
[1730111245994,6.428,178.01,177.98,17.07177217]
[1730111246296,70.0,178.02,178.0,17.07177217]
[1730111246880,16.2935,178.03,178.0,17.07177217]
[1730111247192,70.0,178.02,178.0,17.07177217]
[1730111247565,70.0,178.02,177.99,17.07177217]
[1730111247968,70.0,178.02,178.0,17.07177217]
[1730111248577,70.12549,178.04,178.01,17.07177217]
[1730111248775,0.12549,178.05,178.03,17.07177217]
[1730111249399,0.25098,178.05,178.03,17.07177217]
[1730111249887,0.25098,178.05,178.01,5.6176]
[1730111249888,20.0,178.07,178.04,17.07177217]
[1730111250088,70.0,178.08,178.05,17.07177217]
[1730111250495,70.0,178.08,177.98,5.6186]
[1730111250496,70.0,178.08,178.07,17.07177217]
[1730111250681,70.12549,178.08,178.07,17.07177217]
[1730111251069,70.0,178.08,178.07,17.07177217]
[1730111251300,15.2882,178.09,178.07,17.07177217]
[1730111251587,70.0,178.1,178.08,17.07177217]
[1730111251796,70.0,178.1,178.09,17.07177217]
[1730111252800,70.0,178.13,178.09,17.07177217]
[1730111253094,70.0,178.13,178.02,17.17177217]
[1730111253095,70.0,178.13,178.12,17.07177217]
[1730111255873,76.459,178.16,178.12,17.07177217]
[1730111256201,70.0,178.16,178.07,23.776884]
[1730111256497,70.0,178.16,178.15,17.07177217]
[1730111256699,70.0,178.16,178.14,17.07177217]
[1730111257078,70.0,178.16,178.13,17.07177217]
[1730111259178,0.25098,178.17,178.15,17.07177217]
[1730111260295,70.0,178.18,178.16,17.07177217]
[1730111260975,70.0,178.18,178.17,17.07177217]
[1730111261498,70.0,178.18,178.16,17.07177217]
[1730111262197,75.6123,178.18,178.15,17.07177217]
[1730111262397,70.0,178.16,178.14,17.07177217]
[1730111262895,70.0,178.16,178.13,17.07177217]
[1730111263273,70.0,178.14,178.12,17.07177217]
[1730111265579,70.0,178.14,178.11,17.07177217]
[1730111265989,70.0,178.14,178.12,17.07177217]
[1730111267986,70.0,178.14,178.11,17.07177217]
[1730111273508,75.6136,178.14,178.11,17.07177217]
[1730111273684,70.0,178.12,178.09,17.07177217]
[1730111274690,70.0,178.12,178.08,17.07177217]
[1730111274893,70.0,178.12,178.07,17.07177217]
[1730111274894,92.68607217,178.12,178.07,17.07177217]
[1730111275911,75.6143,178.12,178.08,17.07177217]
[1730111276910,0.25098,178.13,178.1,17.07177217]
[1730111277110,0.25098,178.13,178.11,17.07177217]
[1730111277993,75.6138,178.14,178.11,17.07177217]
[1730111278418,75.6138,178.14,178.1,17.07177217]
[1730111279310,70.0,178.12,178.09,17.07177217]
[1730111279718,70.0,178.1,178.06,17.07177217]
[1730111280514,70.0,178.1,178.07,17.07177217]
[1730111280704,0.25098,178.11,178.08,17.07177217]
[1730111281797,70.0,178.14,178.1,17.07177217]
[1730111282002,70.0,178.14,178.11,17.07177217]
[1730111282301,70.0,178.14,178.1,17.07177217]
[1730111282495,17.07177217,178.13,178.08,17.07177217]
[1730111283825,70.0,178.12,178.08,17.07177217]
[1730111284012,87.07177217,178.12,178.07,17.07177217]
[1730111284206,70.0,178.12,178.08,17.07177217]
[1730111284527,70.0,178.12,178.09,17.07177217]
[1730111284713,0.12549,178.13,178.1,17.07177217]
[1730111285229,70.0,178.14,178.11,17.07177217]
[1730111285716,70.0,178.14,178.12,17.07177217]
[1730111287223,70.0,178.16,178.13,17.07177217]
[1730111287400,70.0,178.16,178.14,17.07177217]
[1730111288508,70.0,178.16,178.13,17.07177217]
[1730111290419,70.0,178.16,178.15,17.07177217]
[1730111290613,70.0,178.18,178.15,17.07177217]
[1730111291324,70.0,178.18,178.16,17.07177217]
[1730111293697,75.6123,178.18,178.16,17.07177217]
[1730111294124,76.153,178.21,178.17,17.07177217]
[1730111294422,70.0,178.21,178.2,17.07177217]
[1730111294721,70.0,178.21,178.19,17.07177217]
[1730111295839,19.09354982,178.22,178.18,17.07177217]
[1730111296611,75.6114,178.21,178.18,17.07177217]
[1730111296818,75.6114,178.21,178.17,17.07177217]
[1730111298633,5.6107,178.23,178.19,10.90023573]
[1730111300334,80.90023573,178.24,178.19,10.90023573]
[1730111300519,86.51063573,178.24,178.19,10.90023573]
[1730111301729,75.6104,178.24,178.2,10.90023573]
[1730111302041,10.90023573,178.21,178.12,23.776884]
[1730111302337,10.90023573,178.21,178.16,10.90023573]
[1730111302741,70.0,178.2,178.16,10.90023573]
[1730111302923,70.0,178.2,178.15,10.90023573]
[1730111302924,80.90023573,178.2,178.15,10.90023573]
[1730111303327,10.90023573,178.19,178.14,10.90023573]
[1730111303531,10.90023573,178.17,178.09,15.2846]
[1730111303733,20.25098,178.22,178.16,10.90023573]
[1730111303942,70.0,178.25,178.21,10.90023573]
[1730111304131,70.0,178.25,178.2,10.90023573]
[1730111304324,80.90023573,178.25,178.2,10.90023573]
[1730111305020,10.90023573,178.24,178.19,10.90023573]
[1730111305222,16.51063573,178.24,178.19,10.90023573]
[1730111305944,10.90023573,178.23,178.18,10.90023573]
[1730111306440,22.64244404,178.24,178.19,17.03204404]
[1730111306629,87.03204404,178.2,178.09,15.2846]
[1730111306939,17.03204404,178.19,178.14,17.03204404]
[1730111307144,17.03204404,178.18,178.13,17.03204404]
[1730111307435,17.03204404,178.18,178.09,15.2846]
[1730111307436,17.03204404,178.17,178.12,17.03204404]
[1730111307640,92.64434404,178.18,178.13,17.03204404]
[1730111308521,17.03204404,178.17,178.12,17.03204404]
[1730111310545,17.03204404,178.15,178.1,17.03204404]
[1730111311229,87.03204404,178.16,178.11,17.03204404]
[1730111314323,17.03204404,178.16,178.11,17.03204404]
[1730111314650,87.03204404,178.16,178.11,17.03204404]
[1730111315022,17.03204404,178.15,178.11,17.03204404]
[1730111315340,17.03204404,178.15,178.1,17.03204404]
[1730111317347,87.03204404,178.18,178.13,17.03204404]
[1730111317643,6.0634,178.21,178.17,17.03204404]
[1730111318534,87.03204404,178.22,178.17,17.03204404]
[1730111319358,17.03204404,178.2,178.15,17.03204404]
[1730111320141,17.03204404,178.18,178.13,17.03204404]
[1730111322441,17.03204404,178.19,178.14,17.03204404]
[1730111323247,17.03204404,178.18,178.13,17.03204404]
[1730111324735,87.03204404,178.18,178.13,17.03204404]
[1730111324942,17.03204404,178.17,178.12,17.03204404]
[1730111325647,17.03204404,178.17,178.11,17.03204404]
[1730111326641,17.03204404,178.17,178.12,17.03204404]
[1730111328455,10.90917519,178.17,178.11,10.90917519]
[1730111331249,75.6124,178.18,178.1,23.776884]
[1730111331559,10.90917519,178.11,178.06,10.90917519]
[1730111331758,10.90917519,178.1,178.05,10.90917519]
[1730111332059,10.90917519,178.08,178.03,10.90917519]
[1730111332938,10.90917519,178.09,178.04,10.90917519]
[1730111334260,16.52407519,178.1,178.05,10.90917519]
[1730111334466,70.0,178.12,178.07,17.05561352]
[1730111334764,87.05561352,178.12,178.07,17.05561352]
[1730111334962,11.80839,178.13,178.02,17.05561352]
[1730111334963,6.0691,178.13,178.09,17.05561352]
[1730111335278,17.05561352,178.12,178.05,23.776884]
[1730111335437,17.05561352,178.12,178.07,40.83249752]
[1730111335637,23.12471352,178.13,178.08,17.05561352]
[1730111336057,17.05561352,178.14,178.09,17.05561352]
[1730111336439,87.05561352,178.14,178.09,17.05561352]
[1730111337143,17.05561352,178.14,178.09,17.05561352]
[1730111337640,22.66891352,178.15,178.1,17.05561352]
[1730111338254,39.55441352,178.17,178.12,17.05561352]
[1730111338454,22.4988,178.17,178.12,17.05561352]
[1730111338657,39.55441352,178.17,178.12,17.05561352]
[1730111339045,17.05561352,178.16,178.11,17.05561352]
[1730111340864,17.05561352,178.15,178.11,17.05561352]
[1730111342769,17.05561352,178.16,178.11,17.05561352]
[1730111343463,17.05561352,178.15,178.1,17.05561352]
[1730111343868,17.05561352,178.14,178.09,17.05561352]
[1730111344069,17.05561352,178.1,178.06,17.05561352]
[1730111344250,17.05561352,178.1,178.05,17.05561352]
[1730111344458,17.05561352,178.09,178.04,17.05561352]
[1730111344769,5.6145,178.11,178.06,17.05561352]
[1730111344967,17.05561352,178.1,178.05,17.05561352]
[1730111347958,17.05561352,178.08,178.03,17.05561352]
[1730111348266,17.05561352,178.07,178.03,23.776884]
[1730111348660,17.05561352,178.06,178.01,17.05561352]
[1730111348964,17.05561352,178.06,177.96,15.9175]
[1730111348965,17.05561352,178.04,177.99,17.05561352]
[1730111349654,17.05561352,178.03,177.98,17.05561352]
[1730111350350,17.05561352,178.01,177.96,17.05561352]
[1730111350757,17.05561352,178.02,177.97,17.05561352]
[1730111352252,17.05561352,178.02,177.98,5.6186]
[1730111353973,37.05561352,178.04,177.99,17.05561352]
[1730111354555,107.05561352,178.04,177.99,17.05561352]
[1730111354750,37.05561352,178.04,177.99,17.05561352]
[1730111354949,112.67241352,178.04,177.98,17.05561352]
[1730111355147,17.05561352,178.03,177.98,17.05561352]
[1730111355752,42.67241352,178.04,177.99,17.05561352]
[1730111355977,22.67241352,178.04,177.99,17.05561352]
[1730111356651,22.67241352,178.04,177.99,22.67371352]
[1730111357364,17.05561352,178.03,177.99,5.6181]
[1730111360165,70.0,178.07,178.02,17.05561352]
[1730111360373,17.05561352,178.08,178.03,17.05561352]
[1730111360575,87.05561352,178.08,178.03,17.05561352]
[1730111361380,92.67101352,178.08,178.03,17.05561352]
[1730111361681,92.67101352,178.08,178.03,22.67251352]
[1730111362385,6.0909,178.09,178.04,17.05561352]
[1730111362684,28.76181352,178.09,178.04,17.05561352]
[1730111362980,70.0,178.08,178.04,17.05561352]
[1730111363185,87.05561352,178.08,178.03,22.67251352]
[1730111363484,92.67111352,178.08,178.03,22.67251352]
[1730111364180,17.05561352,178.08,178.03,22.67251352]
[1730111364382,6.0909,178.09,178.05,17.05561352]
[1730111365063,16.3232,178.1,178.06,17.05561352]
[1730111365264,19.43801747,178.16,178.09,17.05561352]
[1730111365265,12.0359,178.13,178.09,17.05561352]
[1730111365689,70.0,178.12,178.09,17.05561352]
[1730111366184,29.09151352,178.13,178.08,17.05561352]
[1730111366382,70.0,178.12,178.08,17.05561352]
[1730111366878,29.09151352,178.13,178.08,17.05561352]
[1730111367083,6.422,178.13,178.09,17.05561352]
[1730111367267,15.8789,178.14,178.1,17.05561352]
[1730111367475,87.05561352,178.16,178.11,17.05561352]
[1730111367868,92.66861352,178.16,178.11,17.05561352]
[1730111369166,92.66861352,178.16,178.03,0.2]
[1730111369167,17.05561352,178.15,178.1,17.05561352]
[1730111369477,92.66861352,178.16,178.11,17.05561352]
[1730111369865,17.05561352,178.14,178.09,17.05561352]
[1730111370073,17.05561352,178.13,178.08,17.05561352]
[1730111370585,17.05561352,178.12,178.07,17.05561352]
[1730111370770,17.05561352,178.1,178.05,17.05561352]
[1730111370970,17.05561352,178.09,178.04,17.05561352]
[1730111371175,17.05561352,178.08,178.03,17.05561352]
[1730111371366,17.05561352,178.08,178.01,17.05561352]
[1730111371367,17.05561352,178.06,178.01,17.05561352]
[1730111371576,17.05561352,178.07,178.02,17.05561352]
[1730111372270,87.05561352,178.08,178.03,17.05561352]
[1730111372765,17.05561352,178.08,178.03,17.05561352]
[1730111373177,17.05561352,178.09,178.05,17.05561352]
[1730111373376,22.441,178.11,178.07,17.05561352]
[1730111373666,22.441,178.11,178.08,17.05561352]
[1730111374980,22.441,178.11,178.07,17.05561352]
[1730111377394,39.49661352,178.11,178.06,17.05561352]
[1730111377584,17.05561352,178.09,178.04,17.05561352]
[1730111378692,87.05561352,178.1,178.05,17.05561352]
[1730111378897,17.05561352,178.09,178.04,17.05561352]
[1730111380316,17.05561352,178.08,178.03,17.05561352]
[1730111380472,17.05561352,178.07,178.02,17.05561352]
[1730111381085,17.05561352,178.08,178.03,17.05561352]
[1730111381277,5.6151,178.09,178.03,17.05561352]
[1730111381278,17.05561352,178.09,178.03,17.05561352]